Cogmind - Beta 12 X1 @@@ ROGUE MODE // 2022.08.19 @ 21:58:13 Player: MTF Result: Destroyed self via exploding Phase Generator Performance ------------- Evolutions (9) 4500 Regions Visited (32) 6400 Robots Destroyed (395) 1975 Value Destroyed (20054) 20054 Prototype IDs (87) 1740 Alien Tech Used (8) 1600 Bonus (30750) 30750 TOTAL SCORE: 67019 Bonus ------- Triggered High Security 1000 High Alert Combat Kills 10678 Follower Combat Kills 9875 Entered DSFs 500 Met Data Miner 300 Met Imprinter 300 Was Imprinted 300 Met Zhirov 300 Met Warlord at Base 500 MAIN.C Attacked Warlord 500 Warlord Defense Kills 1100 Found Hidden Lab 3000 Used Core Reset Matrix 3000 Scanned by Researcher 500 Pursued by Intercept 500 Friendly Fire -1603 Cogmind --------- Core Integrity 0/1600 Matter 285/300 Energy 100/100 System Corruption 75% Temperature Cool (0) Movement Core (50) Location -1/Command Parts ------- > --- POWER (4) -------- (None) > --- PROPULSION (6) --- (None) > --- UTILITY (14) ----- (None) > --- WEAPON (2) ------- (None) > --- INVENTORY (5) ---- (None) Peak State ------------ > --- POWER ------------ Micro Antimatter Reactor Quantum Reactor Quantum Reactor Quantum Reactor > --- PROPULSION ------- Centrium Heavy Treads Biometal Heavy Treads Biometal Heavy Treads > --- UTILITY ---------- Experimental Power Amplifier Advanced Cooling System Advanced Cooling System Huge Storage Unit Advanced Terrain Scan Processor Advanced Targeting Computer Experimental Core Analyzer Quantum Capacitor Experimental Cloaking Device Zionite Shade Armor Advanced Force Field Stealth Drone Bay > --- WEAPON ----------- Potential Cannon > --- INVENTORY -------- Biometal Heavy Treads Biometal Heavy Treads Advanced Energy Well Advanced Energy Well Long-range Terrain Scanner Experimental Targeting Computer Graphene Brace Experimental EM Disruption Field Advanced Force Field Experimental Hacking Suite Deep Network Scanner Advanced System Shield Transdimensional Reconstructor Transdimensional Reconstructor Compact HERF Cannon Compact HERF Cannon Nova Cannon Potential Cannon Compact Tesla Bomb Launcher Plasma Cutter CL-ANK's Mallet [Rating: 230] Favorites ----------- Power Antimatter Reactor Engine Reinforced Deuterium Engine Power Core Micro Fission Core Reactor Antimatter Reactor Propulsion Armored Treads Treads Armored Treads Leg Aluminum Leg Flight Unit Cesium-ion Thruster Utility Advanced Targeting Computer Device Structural Scanner Storage Huge Storage Unit Processor Advanced Targeting Computer Hackware Improved Hacking Suite Protection Layered Medium Armor Plating Artifact LC Capacitor Weapon Enhanced Autogun Energy Gun Pulse Rifle Energy Cannon Compact HERF Cannon Ballistic Gun Enhanced Autogun Ballistic Cannon Flak Cannon Launcher Improved Grenade Launcher Special Weapon Mining Laser Impact Weapon Makeshift Hammer Build | -11 -10 -10 -10 -9 -8 -7 -7 -7 -7 -6 -6 -6 -6 -6 -5 -5 -5 -5 -5 -4 -4 -4 -4 -4 -3 -3 -3 -3 -2 -2 -1 -1 ------- Run | Scr Mat Min Exi Min Mat Fac Low Low Zio Pro Fac Low Low Dat Pro Fac Upp Upp Zhi Pro Fac Upp Upp War Pro Res Arm Lab Res DSF Acc Com Slots Evolved 18 | . . . . . 4 2 . . . . 2 . . . . 2 . . . . 2 . . . . 2 . . 2 . 2 . Power 2 | . . . . . . 1 . . . . . . . . . . . . . . . . . . . . . . . . 1 . Propulsion 4 | . . . . . 2 . . . . . . . . . . . . . . . 2 . . . . . . . . . . . Utility 12 | . . . . . 2 1 . . . . 2 . . . . 2 . . . . . . . . . 2 . . 2 . 1 . Weapon . | . . . . . . . . . . . . . . . . . . . . . . . . . . . . . . . . . Parts Attached 539 | 3 10 4 13 8 37 28 14 9 5 13 7 23 11 2 31 29 . . 8 6 7 . . 9 12 63 27 25 4 12 61 58 Power 46 | . 1 1 2 . 2 3 . . 1 2 . 2 1 . 4 2 . . 1 . . . . 1 1 1 5 3 . . 4 9 Engine 10 | . 1 1 . . 1 1 . . 1 . . 2 1 . 1 1 . . . . . . . . . . . . . . . . Core 8 | . . . 2 . 1 2 . . . 2 . . . . 1 . . . . . . . . . . . . . . . . . Reactor 28 | . . . . . . . . . . . . . . . 2 1 . . 1 . . . . 1 1 1 5 3 . . 4 9 Propulsion 56 | 2 2 1 4 . 10 5 1 . . 3 . 2 . . 3 3 . . . . 1 . . . 1 7 2 . . 2 1 6 Treads 50 | 2 1 . 3 . 9 5 1 . . 3 . 2 . . 3 3 . . . . 1 . . . 1 7 2 . . 2 1 4 Leg 3 | . 1 1 1 . . . . . . . . . . . . . . . . . . . . . . . . . . . . . Wheel . | . . . . . . . . . . . . . . . . . . . . . . . . . . . . . . . . . Hover . | . . . . . . . . . . . . . . . . . . . . . . . . . . . . . . . . . Flight 3 | . . . . . 1 . . . . . . . . . . . . . . . . . . . . . . . . . . 2 Utility 255 | 1 2 1 2 2 10 13 7 4 3 5 5 12 4 . 13 11 . . 4 1 4 . . 4 2 39 13 14 4 7 40 28 Device 194 | 1 1 1 2 2 5 11 5 3 2 5 4 10 4 . 5 8 . . 3 1 3 . . 4 1 31 10 9 3 7 33 20 Storage 8 | . 1 . . . 1 . . . . . . . . . 3 . . . . . . . . . . . . 1 . . . 2 Processor 13 | . . . . . 2 . 1 . . . 1 . . . . . . . . . . . . . . 3 . . . . 5 1 Hackware 3 | . . . . . . 1 . . . . . . . . . . . . . . . . . . . 1 1 . . . . . Protection 36 | . . . . . 2 1 1 1 1 . . 2 . . 5 3 . . 1 . 1 . . . 1 4 2 3 1 . 2 5 Artifact 1 | . . . . . . . . . . . . . . . . . . . . . . . . . . . . 1 . . . . Weapon 182 | . 5 1 5 6 15 7 6 5 1 3 2 7 6 2 11 13 . . 3 5 2 . . 4 8 16 7 8 . 3 16 15 Energy Gun 5 | . 3 . 1 . . . . . . . . . . . . . . . . . . . . . . 1 . . . . . . Energy Cannon 96 | . . . . . . . . . . . 2 3 3 2 9 8 . . 3 4 2 . . 2 6 12 6 7 . 2 15 10 Ballistic Gun 18 | . . . . . 9 3 2 1 1 1 . . . . . 1 . . . . . . . . . . . . . . . . Ballistic Cannon 5 | . . . . 4 1 . . . . . . . . . . . . . . . . . . . . . . . . . . . Launcher 36 | . 1 . 2 1 4 2 2 2 . . . 2 3 . 2 4 . . . 1 . . . 1 2 3 1 . . . . 3 Special Weapon 5 | . 1 1 1 . . . . . . . . . . . . . . . . . . . . 1 . . . . . 1 . . Impact Weapon 17 | . . . 1 1 1 2 2 2 . 2 . 2 . . . . . . . . . . . . . . . 1 . . 1 2 Slashing Weapon . | . . . . . . . . . . . . . . . . . . . . . . . . . . . . . . . . . Piercing Weapon . | . . . . . . . . . . . . . . . . . . . . . . . . . . . . . . . . . Special Melee Weapon . | . . . . . . . . . . . . . . . . . . . . . . . . . . . . . . . . . Unidentified Prototypes 41 | . . . . . 4 1 . 1 . . . . . . 2 2 . . 2 1 . . . 3 . 11 2 8 . 1 2 1 Corrupted Parts 14 | . . . . . . . . . . 2 . 1 . . 5 . . . . . . . . . . . . . . . . 6 System Corruption 83 | . . . . . . . . . . 14 . 2 . . 17 . . . . . . . . . . . . . . . . 50 Parts Lost 42 | . 4 2 . . 2 1 1 . . . . . . . . . . . . 1 . . . . . 3 1 . . 1 . 26 Power 9 | . 1 1 . . . 1 . . . . . . . . . . . . . . . . . . . 1 . . . . . 5 Propulsion 10 | . 1 1 . . 1 . 1 . . . . . . . . . . . . . . . . . . . . . . . . 6 Utility 17 | . . . . . . . . . . . . . . . . . . . . . . . . . . 2 1 . . 1 . 13 Weapon 6 | . 2 . . . 1 . . . . . . . . . . . . . . 1 . . . . . . . . . . . 2 Highest Loss Streak 16 | . 3 2 . . 2 1 1 . . . . . . . . . . . . 1 . . . . . 3 1 . . 1 . 16 To Critical Strikes . | . . . . . . . . . . . . . . . . . . . . . . . . . . . . . . . . . Average Slot Usage (%) 85 | . 100 98 99 100 99 86 99 98 92 99 100 97 93 82 99 86 77 77 66 76 74 75 75 71 70 71 75 76 79 75 78 69 Engine 3 | . 14 13 6 . 6 2 . . . 1 . 5 8 12 7 4 5 5 5 5 5 5 5 1 . . . . . . . . Core 4 | . . . 7 14 2 6 15 14 14 19 18 12 9 6 4 . . . . . . . . . . . . . . . . . Reactor 5 | . . . . . . . . . . . . . . . 5 11 11 11 11 11 10 10 10 10 10 8 9 11 12 12 14 12 Treads 19 | . 25 21 7 28 35 30 30 29 28 27 25 25 25 25 24 20 11 11 11 11 14 15 15 15 15 12 13 13 12 12 11 9 Leg 1 | . 2 5 20 . . . . . . . . . . . . . . . . . . . . . . . . . . . . . Device 16 | . 14 14 14 14 8 7 9 7 7 7 18 15 12 12 17 21 22 22 22 22 20 20 20 20 20 18 21 25 29 25 26 18 Storage 6 | . 14 14 14 14 9 7 7 7 7 7 6 6 6 6 6 5 5 5 5 5 5 5 5 5 5 4 4 4 4 4 3 3 Processor 8 | . . . . . 12 7 12 14 14 14 12 12 12 12 12 5 5 5 5 5 5 5 5 5 5 11 12 9 8 8 10 13 Protection 4 | . . . . . 5 7 7 6 6 7 6 6 6 6 5 4 5 5 5 5 5 5 5 5 5 4 4 3 4 4 1 2 Energy Cannon 5 | . . . . . . . . . . . 8 11 9 1 11 9 11 11 . 10 10 10 10 9 9 8 9 6 8 8 6 4 Ballistic Gun 3 | . . . . . 14 13 11 9 10 13 1 . . . . . . . . . . . . . . . . . . . . . Launcher 1 | . 2 14 7 2 . . . 2 3 . . . 2 . . . . . . . . . . . . . . . . . . 1 Naked Turns 90 | . . . . . . . . . . . . . . . . . . . . . . . . . . . . . . . . 90 Heaviest Build 222 | 15 31 31 37 43 103 124 121 105 109 116 127 146 151 150 158 164 164 164 167 167 165 165 165 180 178 184 193 195 199 200 222 221 Greatest Support 230 | 40 40 40 40 40 80 80 80 80 80 100 100 100 90 90 90 140 140 140 140 140 210 210 210 210 210 210 210 210 210 230 230 230 Greatest Overweight (x) 3 | . 1 1 1 1 1 1 1 1 1 1 1 1 1 1 1 2 1 1 1 1 1 . . . . 1 . . . . . 3 Average Overweight (x) . | . . . . . . 1 1 1 1 1 1 1 1 1 1 1 1 1 1 1 . . . . . . . . . . . . Largest Inventory Capacity 25 | 8 15 15 15 15 25 25 25 25 25 25 25 25 25 25 25 25 25 25 25 25 25 25 25 25 25 25 25 25 25 25 25 25 Average Capacity 23 | 8 13 15 15 15 22 25 25 25 25 25 25 25 25 25 25 25 25 25 25 25 25 25 25 25 25 25 25 25 25 25 25 22 Most Carried 25 | 7 11 15 15 15 25 25 25 25 25 25 25 25 25 25 25 25 25 25 25 25 25 25 25 25 25 25 25 25 24 25 25 25 Average Carried 23 | 4 7 13 14 14 19 24 24 24 24 24 24 24 25 25 24 24 25 25 24 24 24 25 25 24 24 24 24 24 23 24 24 20 Final Capacity 25 | 8 15 15 15 15 25 25 25 25 25 25 25 25 25 25 25 25 25 25 25 25 25 25 25 25 25 25 25 25 25 25 25 5 Final Carried 25 | 5 11 13 15 15 25 25 24 25 25 25 24 25 25 25 25 25 25 25 25 24 25 25 25 25 24 25 25 25 24 25 24 . Class Distribution -------------------- 45% | Scavenger-Mutant 37% | Generator-Mutant 10% | Mutant 5% | Generator-Skirmisher Dominant Class ---------------- Mutant | -10/Materials Mutant | -10/Mines Mutant | -10/Exiles Mutant | -9/Mines Scavenger-Mutant | -8/Materials Scavenger-Mutant | -7/Factory Scavenger-Mutant | -7/Lower Caves Scavenger-Mutant | -7/Lower Caves Scavenger-Mutant | -7/Zion Scavenger-Mutant | -6/Proximity Caves Scavenger-Mutant | -6/Factory Scavenger-Mutant | -6/Lower Caves Scavenger-Mutant | -6/Lower Caves Scavenger-Mutant | -6/Data Miner Scavenger-Mutant | -5/Proximity Caves Scavenger-Mutant | -5/Factory Scavenger-Mutant | -5/Upper Caves Scavenger-Mutant | -5/Upper Caves Generator-Mutant | -5/Zhirov Generator-Mutant | -4/Proximity Caves Generator-Mutant | -4/Factory Generator-Mutant | -4/Upper Caves Generator-Mutant | -4/Upper Caves Generator-Mutant | -4/Warlord Generator-Mutant | -3/Proximity Caves Generator-Mutant | -3/Research Generator-Mutant | -3/Armory Generator-Mutant | -3/Lab Generator-Mutant | -2/Research Generator-Mutant | -2/DSF Generator-Mutant | -1/Access Generator-Mutant | -1/Command Resources | -11 -10 -10 -10 -9 -8 -7 -7 -7 -7 -6 -6 -6 -6 -6 -5 -5 -5 -5 -5 -4 -4 -4 -4 -4 -3 -3 -3 -3 -2 -2 -1 -1 ----------- Run | Scr Mat Min Exi Min Mat Fac Low Low Zio Pro Fac Low Low Dat Pro Fac Upp Upp Zhi Pro Fac Upp Upp War Pro Res Arm Lab Res DSF Acc Com Matter Collected 8333 | 230 147 10 179 218 930 722 248 145 60 178 . 352 340 . 480 205 111 156 6 159 46 30 . 6 463 1044 292 201 . 85 335 955 Remotely 357 | . . . . . 124 233 . . . . . . . . . . . . . . . . . . . . . . . . . . Salvage Created 25079 | 163 621 . 243 185 1572 837 296 213 . 62 . 491 576 . 643 488 602 74 130 150 263 . . 213 557 1048 1107 76 . 790 4378 9301 Parts 1024 | 14 39 . 20 23 110 43 5 4 . . . 23 12 . 19 29 12 . . 1 10 . . 5 30 53 39 5 . 31 162 335 Haulers Intercepted 10 | . 2 . . . 6 2 . . . . . . . . . . . . . . . . . . . . . . . . . . Recyclers Shooed 15 | . 1 . . . 1 1 . . . . . . . . . 1 . . . . 1 . . . . 1 . . . . 2 7 Parts Field Recycled . | . . . . . . . . . . . . . . . . . . . . . . . . . . . . . . . . . Retrieved Matter . | . . . . . . . . . . . . . . . . . . . . . . . . . . . . . . . . . Parts Self-Destructed 80 | . . . . . . . 1 4 . 10 . 7 6 . 13 . 4 . . 12 . . 1 . 22 . . . . . . . Prevented 50 | . . . . . . . . 1 . 12 . 17 3 . 12 . . . . 2 . . . . 3 . . . . . . . Kills | -11 -10 -10 -10 -9 -8 -7 -7 -7 -7 -6 -6 -6 -6 -6 -5 -5 -5 -5 -5 -4 -4 -4 -4 -4 -3 -3 -3 -3 -2 -2 -1 -1 ------- Run | Scr Mat Min Exi Min Mat Fac Low Low Zio Pro Fac Low Low Dat Pro Fac Upp Upp Zhi Pro Fac Upp Upp War Pro Res Arm Lab Res DSF Acc Com Combat Hostiles Destroyed 327 | . 9 . . 12 27 10 3 4 . 2 . 7 18 . 12 12 . . . 4 2 . . 7 14 16 14 1 . 7 46 100 Melee 4 | . . . . . . . . . . . . . . . . . . . . . . . . . . . . . . . 2 2 Guns 38 | . 7 . . 1 17 10 . 1 . 2 . . . . . . . . . . . . . . . . . . . . . . Cannons 88 | . . . . 7 2 . . . . . . 3 1 . 3 4 . . . 1 . . . 2 3 8 10 . . 3 25 16 AOE 107 | . 2 . . 4 8 . 3 3 . . . 3 16 . 7 8 . . . . 2 . . 3 8 4 . . . . 7 29 Classes Destroyed 27 | 2 4 . . 2 4 2 1 1 . 1 . 2 . . . . . . . 2 . . . 1 . 1 . . . . 3 1 Worker 18 | . . . . . 4 1 . . . . . . . . . 1 . . . . . . . . . . . . . . 1 11 Builder 13 | . 4 . . . 1 . . . . . . . . . . 2 . . . . 1 . . . . . . . . . 5 . Tunneler 8 | 5 . . . 2 1 . . . . . . . . . . . . . . . . . . . . . . . . . . . Hauler 10 | . 2 . . . 6 2 . . . . . . . . . . . . . . . . . . . . . . . . . . Recycler 18 | 1 . . . . 4 2 . . . . . . . . . . . . . . . . . . . 1 . . . . 4 6 Carrier 1 | . . . . . . . . . . . . . . . . . . . . . . . . . . . . . . . 1 . Mechanic 4 | . . . . . . . . . . . . . . . . . . . . . . . . . . . . . . . 2 2 Watcher 11 | . 1 . . . 2 . . . . . . . . . . 1 . . . . 2 . . . . . . . . . 4 1 Swarmer 56 | . . . . 7 13 . . . . 1 . . 3 . . 4 . . . . . . . . 8 2 2 . . . 8 8 Saboteur 7 | . . . . . . . . . . . . . . . . . . . . . . . . . . 1 . . . . . 6 Grunt 122 | . 9 . . 4 8 5 . 4 . . . 5 9 . 5 4 . . . . . . . 4 . 3 3 . . 3 17 39 Brawler 14 | . . . . . . . . . . 1 . . . . 1 . . . . . . . . . . . 2 . . . 1 9 Duelist 16 | . . . . 1 . . . . . . . . 5 . 2 . . . . . . . . . . . . . . . 1 7 Protector 6 | . . . . . . . . . . . . . . . . . . . . . . . . . . . . . . . 1 5 Researcher 1 | . . . . . . . . 1 . . . . . . . . . . . . . . . . . . . . . . . . Sentry 20 | . . . . . 3 1 . . . . . 1 1 . 1 1 . . . 1 . . . . 1 3 4 . . . 3 . Demolisher 3 | . . . . . . . . . . . . . . . . . . . . 3 . . . . . . . . . . . . Specialist 7 | . . . . . 2 . . . . . . . . . 1 . . . . . . . . . . 1 . . . 3 . . Hunter 19 | . . . . . . 3 . . . . . . . . 2 . . . . . 2 . . . 2 . . . . . 3 7 Programmer 33 | . . . . . . 1 . . . . . . . . . 3 . . . . . . . 2 2 6 2 . . . 9 8 Heavy 3 | . . . . . 1 . . . . . . . . . . . . . . . . . . . . . 1 . . 1 . . Behemoth 1 | . . . . . . . . . . . . 1 . . . . . . . . . . . . . . . . . . . . Tracker 1 | . . . . . . . . . . . . . . . . . . . . . . . . . . . . . . . 1 . Combat Programmer 2 | . . . . . . . . . . . . . . . . . . . . . . . . . . . . . . . 2 . Investigator 1 | . . . . . . . . . . . . . . . . . . . . . . . . . . . . . . . . 1 Striker 9 | . . . . . . . . . . . . . . . . . . . . . . . . . . . . . . . . 9 Executioner 3 | . . . . . . . . . . . . . . . . . . . . . . . . 1 . . . . . . . 2 Decomposer 2 | . . . . . . . . . . . . . . . . . 2 . . . . . . . . . . . . . . . Packrat 1 | . . . . . . . . . . . . . . . . . . 1 . . . . . . . . . . . . . . Samaritan 5 | . . . . . . . 4 1 . . . . . . . . . . . . . . . . . . . . . . . . Thug 1 | . . . . . . . 1 . . . . . . . . . . . . . . . . . . . . . . . . . Savage 1 | . . . . . . . . . . . . . . . . . . . . . . . . . 1 . . . . . . . Butcher 2 | . . . . . . . 2 . . . . . . . . . . . . . . . . . . . . . . . . . Fireman 1 | . . . . . . . . . . . . . . . . . . . . 1 . . . . . . . . . . . . Mutant 1 | . . . . . . . . . . . . 1 . . . . . . . . . . . . . . . . . . . . Best Kill Streak 32 | 4 3 . . 5 12 7 3 4 . 1 . 3 7 . 5 6 . . . 1 3 . . 4 5 4 4 1 . 4 9 32 Combat Bots Only 27 | . 2 . . 4 8 6 3 4 . 1 . 3 7 . 5 4 . . . 1 2 . . 4 5 4 4 1 . 4 6 27 Max Kills in Single Turn 5 | 1 2 . . 4 5 1 3 2 . 1 . 3 2 . 3 4 1 1 . 1 2 . . 2 3 2 2 1 . 1 5 4 Gunslinging . | . . . . . . . . . . . . . . . . . . . . . . . . . . . . . . . . . Exploded 4 | . 1 . . 4 3 . 3 2 . . . 3 2 . 3 4 . . . . 2 . . 2 3 2 . . . . 4 3 Melee 1 | . . . . . . . . . . . . . . . . . . . . . . . . . . . . . . . 1 1 Uniques/NPCs Destroyed 1 | . . . . . . . . . . . . . . . . . . . . . . . . . . . . 1 . . . . A5 (-3/Lab) Combat | -11 -10 -10 -10 -9 -8 -7 -7 -7 -7 -6 -6 -6 -6 -6 -5 -5 -5 -5 -5 -4 -4 -4 -4 -4 -3 -3 -3 -3 -2 -2 -1 -1 -------- Run | Scr Mat Min Exi Min Mat Fac Low Low Zio Pro Fac Low Low Dat Pro Fac Upp Upp Zhi Pro Fac Upp Upp War Pro Res Arm Lab Res DSF Acc Com Damage Taken 19412 | . 563 303 . 86 925 944 176 119 . 386 . 471 568 . 292 304 28 . . 360 166 . 44 573 138 2092 471 33 . 761 1597 8012 Core 2303 | . 50 98 . 11 93 33 58 19 . 32 . 34 35 . 42 12 . . . 66 . . . 17 9 101 15 6 . 28 113 1431 Absorbed by Shields 9067 | . . . . 44 96 276 . 8 . 92 . 171 208 . 111 111 10 . . 84 6 . 16 512 133 1370 483 34 . 797 1687 2818 Reduced by Siege Mode 1003 | . . . . . . . . . . . . . . . . . . . . . . . . . . 149 2 1 . 30 21 800 Redirected to Shielding 87 | . . . . . . . . . . . . . . . . . . . . . . . . . . . . . . . . 87 Regen/Repaired (Parts) 623 | . . . . . . . . . 581 . . . . . . . . . . . . . . 41 . . . 1 . . . . Core Remaining (%) 85 | 100 . . . 36 83 . . . . 79 . . . . 86 . . . . 92 . . . . 97 . . 100 . 98 . . Volleys Fired 1199 | 13 53 3 42 15 81 60 3 5 . 11 3 15 18 . 20 31 12 1 . 16 8 6 1 48 64 99 87 16 10 51 213 194 Largest 2 | 1 2 1 1 2 2 2 2 2 . 2 2 2 2 . 2 2 1 1 . 2 1 1 1 1 2 2 1 1 1 2 2 1 Hottest 207 | 50 100 100 20 107 88 50 50 50 . 50 138 138 138 . 138 162 81 90 . 162 94 90 90 94 175 175 113 113 113 188 207 200 Shots Fired 1500 | 13 94 3 42 29 156 120 5 7 . 23 6 29 23 . 37 34 12 2 . 28 8 6 1 49 67 105 89 16 10 53 241 192 Gun 393 | 13 91 . . 4 134 120 4 4 . 23 . . . . . . . . . . . . . . . . . . . . . . Cannon 925 | . . . . 24 16 . . . . . 6 28 10 . 33 27 12 2 . 28 8 6 1 36 61 102 89 16 10 53 241 116 Launcher 124 | . 1 . . 1 6 . 1 3 . . . 1 13 . 4 7 . . . . . . . 2 6 3 . . . . . 76 Special 58 | . 2 3 42 . . . . . . . . . . . . . . . . . . . . 11 . . . . . . . . Kinetic 325 | . . . . 24 150 120 4 4 . 23 . . . . . . . . . . . . . . . . . . . . . . Thermal 588 | 13 42 3 42 4 . . . . . . . . . . 2 17 . 1 . 6 2 6 1 19 46 78 61 16 10 31 140 48 Explosive 48 | . 1 . . 1 6 . 1 3 . . . 1 13 . 4 7 . . . . . . . 2 6 3 . . . . . . Electromagnetic 528 | . 51 . . . . . . . . . 6 28 10 . 31 10 12 1 . 22 6 . . 17 15 24 28 . . 22 101 144 Robot Hit Streak 36 | 10 14 . 18 11 36 20 2 3 . 6 . 13 12 . 13 17 10 . . 5 9 . . 9 14 31 8 5 5 14 24 24 Robot Miss Streak 9 | 1 5 . 3 9 7 3 1 . . 2 . 3 1 . 1 4 1 1 . 2 1 . 2 1 2 2 1 1 1 1 6 3 Penetration Max . | . . . . . . . . . . . . . . . . . . . . . . . . . . . . . . . . . Secondary Targets 1 | . 1 . . . . . . . . . . . . . . . . . . . . . . . . . . . . . . . Max Gunslinging Chain 1 | . 1 . . . . . . . . . . . . . . . . . . . . . . . . . . . . . . . Capacitor 353 | . . . . . . . . . . . . . . . . . . . . . . . . . . 35 89 13 10 8 123 75 Shots Hit Robots 939 | 11 59 . 31 21 120 94 8 4 . 17 . 22 18 . 30 15 11 . . 13 4 . . 30 20 62 49 10 1 39 135 115 Core Hits 811 | 7 29 . 12 28 75 28 10 7 . 8 . 20 44 . 29 19 10 1 12 5 19 . . 28 19 55 21 4 1 13 89 218 Critical Kills 9 | . . . 1 . 1 . . . . . . . . . . . . . . . . . . . . 1 1 1 . . 3 1 Critical Parts Destroyed 4 | . . . . . . . 3 . . . . . . . . . . . . . . . . . . . . . . . . 1 Critical Strikes 29 | 2 1 . 2 1 1 . 3 . . . . 1 . . . . . . . . . . . . . 2 1 1 . 1 8 5 Burn 4 | 2 1 . . 1 . . . . . . . . . . . . . . . . . . . . . . . . . . . . Meltdown 5 | . . . . . . . . . . . . . . . . . . . . . . . . . . 1 1 1 . . 2 . Destroy 1 | . . . . . 1 . . . . . . . . . . . . . . . . . . . . . . . . . . . Corrupt 9 | . . . . . . . . . . . . 1 . . . . . . . . . . . . . 1 . . . 1 5 1 Smash 9 | . . . 1 . . . 3 . . . . . . . . . . . . . . . . . . . . . . . 1 4 Sever 1 | . . . 1 . . . . . . . . . . . . . . . . . . . . . . . . . . . . . Melee Attacks 48 | . . . 1 8 1 5 5 4 . 5 . 10 . . . . . . . . . . . . . . . 2 . . 3 4 Kinetic 9 | . . . . . . . . . . . . . . . . . . . . . . . . . . . . 2 . . 3 4 Impact 39 | . . . 1 8 1 5 5 4 . 5 . 10 . . . . . . . . . . . . . . . . . . . . Slashing . | . . . . . . . . . . . . . . . . . . . . . . . . . . . . . . . . . Piercing . | . . . . . . . . . . . . . . . . . . . . . . . . . . . . . . . . . Sneak Attacks 6 | . . . . . . . 4 2 . . . . . . . . . . . . . . . . . . . . . . . . Combat Hostiles . | . . . . . . . . . . . . . . . . . . . . . . . . . . . . . . . . . Follow-up Attacks . | . . . . . . . . . . . . . . . . . . . . . . . . . . . . . . . . . Damage Inflicted 50370 | 138 991 . 487 616 2796 1562 684 645 . 293 8 701 2313 . 1462 1537 860 88 138 447 623 . . 1266 1837 3962 1956 285 39 1626 8122 14888 Guns 4503 | 138 780 . . 52 1591 1562 54 33 . 293 . . . . . . . . . . . . . . . . . . . . . . Cannons 21028 | . . . . 368 316 . . . . . . 522 199 . 689 519 399 . . 447 237 . . 705 743 2552 1956 285 39 1626 6255 3171 Explosions 22618 | . 208 . . 180 886 . 263 366 . . . 179 2114 . 773 990 394 . . . 351 . . 561 1045 1410 . . . . 1499 11399 Melee 1311 | . . . 132 . . . 367 246 . . . . . . . . . . . . . . . . . . . . . . 275 291 Ramming 555 | . 3 . . 16 3 . . . . . 8 . . . . 28 67 88 138 . 35 . . . 49 . . . . . 93 27 Kinetic 4783 | . . . . 368 1907 1562 54 33 . 293 . . . . . . . . . . . . . . . . . . . . 275 291 Thermal 14355 | 138 484 . 355 52 . . . . . . . . . . . 369 394 . . 20 . . . 242 390 2023 1164 285 39 902 4498 3000 Explosive 8693 | . 84 . . 180 886 . 263 366 . . . 179 2114 . 773 990 . . . . . . . 460 935 1309 . . . . . 154 Electromagnetic 21239 | . 420 . . . . . . . . . . 522 199 . 689 150 399 . . 427 588 . . 564 463 630 792 . . 724 3256 11416 Impact 745 | . . . 132 . . . 367 246 . . . . . . . . . . . . . . . . . . . . . . . . Slashing . | . . . . . . . . . . . . . . . . . . . . . . . . . . . . . . . . . Piercing . | . . . . . . . . . . . . . . . . . . . . . . . . . . . . . . . . . Highest Corruption 75 | . . 3 3 . . 2 2 . . 14 . 2 2 2 19 4 4 4 4 4 . . . 1 2 8 8 9 . . 7 75 Average Corruption 6 | . . 3 2 . . 2 1 . . 13 . 2 2 2 9 1 4 4 4 4 . . . 1 1 6 8 8 . . 4 26 Corruption Purged 6 | . . . 3 . . . 2 . . . . . . . . . . . . . . . . . 1 . . . . . . . Corruption Blocked 69 | . . . . . . . . . . . . . . . . . . . . . . . . 39 . . 30 . . . . . Effects 335 | . . 1 10 . . 2 2 . . 2 . 4 17 3 39 6 28 8 8 38 . . . 1 17 6 32 12 . . 31 68 Message Errors 79 | . . . 2 . . . . . . . . 1 3 3 8 2 5 2 4 13 . . . . 3 3 10 5 . . 7 8 Matter Fused 81 | . . . 4 . . 1 2 . . 1 . 1 6 . 10 1 10 4 . 10 . . . . 6 . 4 3 . . 10 8 Heat Flow Errors 37 | . . . 1 . . . . . . . . 1 1 . 3 2 3 . 2 5 . . . . 3 1 4 2 . . 5 4 Energy Discharges 42 | . . . . . . . . . . . . 1 3 . 4 . 4 . 1 2 . . . . 2 1 8 . . . 5 11 Parts Rejected 4 | . . . . . . . . . . . . . . . . . . . . . . . . . . . . . . . 1 3 Data Loss (minor) 39 | . . 1 3 . . 1 . . . . . . 4 . 6 . 4 1 1 3 . . . . 2 1 3 2 . . 2 5 Data Loss (major) 10 | . . . . . . . . . . . . . . . 1 . 2 . . 3 . . . . . . 1 . . . . 3 Misfires 16 | . . . . . . . . . . 1 . . . . 4 1 . 1 . 2 . . . 1 . . 2 . . . . 4 Alerts 3 | . . . . . . . . . . . . . . . 3 . . . . . . . . . . . . . . . . . Misdirections 16 | . . . . . . . . . . . . . . . . . . . . . . . . . . . . . . . . 16 Weapon Failures 8 | . . . . . . . . . . . . . . . . . . . . . . . . . 1 . . . . . 1 6 Overload Shots . | . . . . . . . . . . . . . . . . . . . . . . . . . . . . . . . . . Overflow Damage 2088 | . . . . 20 37 . 366 164 . . . . 12 . . 50 248 22 8 3 . . . . 39 82 . . . 7 413 617 Projectiles 705 | . . . . . . . . . . . . . . . . 30 148 . . 3 . . . . 16 82 . . . 7 190 229 Explosions 690 | . . . . 20 37 . 2 . . . . . 12 . . 20 85 . . . . . . . 23 . . . . . 197 294 Melee 693 | . . . . . . . 364 164 . . . . . . . . 15 22 8 . . . . . . . . . . . 26 94 Knockbacks 10 | . . . . 7 . . . 1 . . . . . . . . . 1 . . . . . . . . . . . . 1 . Impact 3 | . . . . . . . . 1 . . . . . . . . . 1 . . . . . . . . . . . . 1 . Kinetic 5 | . . . . 5 . . . . . . . . . . . . . . . . . . . . . . . . . . . . Secondary 2 | . . . . 2 . . . . . . . . . . . . . . . . . . . . . . . . . . . . Self-Inflicted Damage 1370 | . 38 . . 22 . . 74 . . . . . 100 . 53 31 38 . . . . . . . . 18 . . . . . 996 Shots 38 | . 1 . . 1 . . 3 . . . . . 3 . 3 1 1 . . . . . . . . 1 . . . . . 24 Rammed 54 | . 1 . . 3 3 . . . . . 1 . . . . 3 9 7 19 . 2 . . . 1 . . . . . 4 1 Targets Rammed 55 | . 1 . . 3 3 . . . . . 1 . . . . 3 9 8 19 . 2 . . . 1 . . . . . 4 1 Kicked . | . . . . . . . . . . . . . . . . . . . . . . . . . . . . . . . . . Crushed 1 | . . . . . . . . . . . . . . . . . . 1 . . . . . . . . . . . . . . Highest Temperature 328 | 60 276 20 108 207 84 247 44 60 . 216 99 255 168 1 181 148 136 16 247 231 60 32 16 80 133 252 244 216 58 45 328 226 Average Temperature 66 | 25 109 11 59 87 30 89 17 29 . 61 54 94 37 1 58 40 61 11 119 68 27 15 12 30 37 63 55 114 34 23 101 73 Received Heat Transfer 2151 | . 321 . . 22 169 235 81 73 . 57 . 81 122 . 36 42 . . . . 12 . . 8 . 24 51 . . 28 172 617 Effects 12 | . 6 . . . . 1 . . . 2 . 2 . . . . . . . . . . . . . . . . . . 1 . Energy Bleed 3 | . 1 . . . . 1 . . . . . . . . . . . . . . . . . . . . . . . . 1 . Interference 9 | . 5 . . . . . . . . 2 . 2 . . . . . . . . . . . . . . . . . . . . Siege Activations 24 | . . . . . . . . . . . . . . . . . . . . . . . . . 2 2 2 1 . 2 8 7 Total Turns 401 | . . . . . . . . . . . . . . . . . . . . . . . . . 12 46 12 10 . 34 54 233 Longest Duration 56 | . . . . . . . . . . . . . . . . . . . . . . . . . 9 39 10 10 . 23 13 56 Robots Corrupted 89 | . . . . . . . . . . . . 1 1 . 2 . . . . 3 . . . 2 3 3 3 . . 4 11 56 Combat Hostiles 84 | . . . . . . . . . . . . 1 1 . 2 . . . . 3 . . . 2 3 3 3 . . 4 10 52 Parts Fried 185 | . . . . . . . 3 3 . . . 5 . . 6 . 1 . . . 5 . . . 1 3 3 . . 10 34 111 Impact Corruptions 40 | . . . . . . . 22 8 . . . . . . . . 2 6 1 . . . . . . . . . . . 1 . Robots Melted 6 | . . . . . . . . . . . . . . . . . . . . . . . . . . 1 1 1 . . 2 1 Combat Hostiles 6 | . . . . . . . . . . . . . . . . . . . . . . . . . . 1 1 1 . . 2 1 Parts Melted 35 | 1 1 . . . . . . . . 1 . . . . . . . . . . . . . . . 7 4 6 . . 13 2 Heat Transferred 13911 | 555 1347 . 1147 185 . . . . . . . . . . . . 512 . . . . . . 31 . 1395 1008 239 37 851 4037 2567 Parts Sabotaged 10 | . . . . . . . . . . . . . . . . . . . . . . . . . . . 2 . . . . 8 Parts Stolen . | . . . . . . . . . . . . . . . . . . . . . . . . . . . . . . . . . Parts Stripped . | . . . . . . . . . . . . . . . . . . . . . . . . . . . . . . . . . Power Chain Reactions 22 | . 3 . . . . . . . . . . . . . . . 1 . . . . . . 1 1 2 . . . . . 14 Missiles Intercepted . | . . . . . . . . . . . . . . . . . . . . . . . . . . . . . . . . . Alert | -11 -10 -10 -10 -9 -8 -7 -7 -7 -7 -6 -6 -6 -6 -6 -5 -5 -5 -5 -5 -4 -4 -4 -4 -4 -3 -3 -3 -3 -2 -2 -1 -1 ------- Run | Scr Mat Min Exi Min Mat Fac Low Low Zio Pro Fac Low Low Dat Pro Fac Upp Upp Zhi Pro Fac Upp Upp War Pro Res Arm Lab Res DSF Acc Com Peak Influence 4403 | 30 196 85 . 308 658 299 . . . . 79 . . . . 561 . . . . 1273 . . . . 808 1512 . 21 171 2427 4403 Initial 1552 | . 19 76 . . 41 250 . . . . 70 . . . . 147 . . . . 81 . . . . 47 401 . . 15 102 1552 Average 677 | 12 82 72 . 136 398 213 . . . . 70 . . . . 348 . . . . 392 . . . . 258 1066 . 9 110 1194 2743 Maximum Alert Level 5 | . . . . 1 2 1 . . . . . . . . . 2 . . . . 4 . . . . 3 4 . . . 5 5 Low Security (%) 35 | 100 100 100 . 74 25 41 . . . . 100 . . . . 12 . . . . 37 . . . . 45 . . 100 100 3 . Level 1 18 | . . . . 25 13 58 . . . . . . . . . 44 . . . . 23 . . . . 39 . . . . 4 . Level 2 16 | . . . . . 60 . . . . . . . . . . 42 . . . . 17 . . . . 11 27 . . . 8 . Level 3 6 | . . . . . . . . . . . . . . . . . . . . . 17 . . . . 3 7 . . . 28 . Level 4 10 | . . . . . . . . . . . . . . . . . . . . . 3 . . . . . 64 . . . 31 2 Level 5 3 | . . . . . . . . . . . . . . . . . . . . . . . . . . . . . . . 12 23 High Security 8 | . . . . . . . . . . . . . . . . . . . . . . . . . . . . . . . 11 73 Max Security . | . . . . . . . . . . . . . . . . . . . . . . . . . . . . . . . . . Squads Dispatched 86 | . 2 1 . . 3 3 . . . . . . 1 . 1 4 . . . . 5 . . . . 10 6 . 2 1 23 24 Investigation 15 | . 2 1 . . . . . . . . . . . . . 1 . . . . 2 . . . . 3 2 . . . 4 . Extermination 13 | . . . . . . 1 . . . . . . . . . 1 . . . . 1 . . . . 4 2 . 1 . 2 1 Reinforcement 14 | . . . . . 3 . . . . . . . . . . 1 . . . . 1 . . . . 3 2 . 1 1 2 . Assault 38 | . . . . . . . . . . . . . 1 . 1 1 . . . . 1 . . . . . . . . . 11 23 Garrison 3 | . . . . . . 2 . . . . . . . . . . . . . . . . . . . . . . . . 1 . Intercept 3 | . . . . . . . . . . . . . . . . . . . . . . . . . . . . . . . 3 . Searches Triggered . | . . . . . . . . . . . . . . . . . . . . . . . . . . . . . . . . . Data Miner Redirects 9 | . . . . . . . . . . . . . . . . 1 . . . . 2 . . . . 2 1 . . . 3 . Construction Impeded 1 | . . . . . . . . . . . . . . . . . . . . . . . . . . 1 . . . . . . Haulers Reinforced . | . . . . . . . . . . . . . . . . . . . . . . . . . . . . . . . . . Active Scanning Responses 9 | . . . . . . . . . . . . . . . . 1 . . . . 2 . . . . 3 . . . . 3 . Cargo Convoy Interrupts 1 | . . . . . . . . . . . . . . . . . . . . . . . . . . 1 . . . . . . Stealth | -11 -10 -10 -10 -9 -8 -7 -7 -7 -7 -6 -6 -6 -6 -6 -5 -5 -5 -5 -5 -4 -4 -4 -4 -4 -3 -3 -3 -3 -2 -2 -1 -1 --------- Run | Scr Mat Min Exi Min Mat Fac Low Low Zio Pro Fac Low Low Dat Pro Fac Upp Upp Zhi Pro Fac Upp Upp War Pro Res Arm Lab Res DSF Acc Com Distress Signals 36 | . . . . . 6 1 . . . . . . . . . 1 . . . 14 2 . . 1 . 1 2 . . . 5 3 Communications Jammed 29 | . . . . . . . . . . . . . . . . . . . . . . . . . . 29 . . . . . . Distress Signals 24 | . . . . . . . . . . . . . . . . . . . . . . . . . . 24 . . . . . . Times Spotted 626 | . 15 . . 13 44 12 3 4 . 10 2 10 15 . 19 20 3 . . 9 14 . 1 63 8 43 46 1 1 7 84 179 Peak Tracking Total 18 | . 3 . . 4 6 5 3 4 . 4 1 4 7 . 8 6 2 . . 3 5 . 1 18 3 12 5 1 1 2 10 18 Tactical Retreats 28 | . . . . . 3 1 . . . 1 . 2 . . 1 . . . . 1 . . . . . . 2 . . . 3 14 Traps | -11 -10 -10 -10 -9 -8 -7 -7 -7 -7 -6 -6 -6 -6 -6 -5 -5 -5 -5 -5 -4 -4 -4 -4 -4 -3 -3 -3 -3 -2 -2 -1 -1 ------- Run | Scr Mat Min Exi Min Mat Fac Low Low Zio Pro Fac Low Low Dat Pro Fac Upp Upp Zhi Pro Fac Upp Upp War Pro Res Arm Lab Res DSF Acc Com Traps Triggered 16 | . . . . . . . . . . . . . . . . 4 . . . 1 . . . . . . 2 . . . 2 7 Indirectly . | . . . . . . . . . . . . . . . . . . . . . . . . . . . . . . . . . Trap Hack Attempts . | . . . . . . . . . . . . . . . . . . . . . . . . . . . . . . . . . Triggered . | . . . . . . . . . . . . . . . . . . . . . . . . . . . . . . . . . Disarmed . | . . . . . . . . . . . . . . . . . . . . . . . . . . . . . . . . . Reprogrammed . | . . . . . . . . . . . . . . . . . . . . . . . . . . . . . . . . . Reused . | . . . . . . . . . . . . . . . . . . . . . . . . . . . . . . . . . Traps Extracted . | . . . . . . . . . . . . . . . . . . . . . . . . . . . . . . . . . Installed . | . . . . . . . . . . . . . . . . . . . . . . . . . . . . . . . . . Triggered 27 | . . . . . . . . 1 . . . . 1 . . . . . . . . . . 17 . . . . . . . 8 Machines | -11 -10 -10 -10 -9 -8 -7 -7 -7 -7 -6 -6 -6 -6 -6 -5 -5 -5 -5 -5 -4 -4 -4 -4 -4 -3 -3 -3 -3 -2 -2 -1 -1 ---------- Run | Scr Mat Min Exi Min Mat Fac Low Low Zio Pro Fac Low Low Dat Pro Fac Upp Upp Zhi Pro Fac Upp Upp War Pro Res Arm Lab Res DSF Acc Com Machines Disabled 44 | . . . . . 2 1 . . . . . . 1 . 2 3 . . . 5 16 . . 2 1 . 3 2 . . 3 3 Max in Single Turn 4 | . . . . . 1 1 . . . . . . 1 . 1 1 . . . 1 4 . . . 1 . 1 1 . . 1 1 Garrison Access 2 | . . . . . . . . . . . . . . . . . . . . . . . . . . . . . . . 2 . Phase Generator 1 | . . . . . . . . . . . . . . . . . . . . . . . . . . . . . . . . 1 Machines Sabotaged . | . . . . . . . . . . . . . . . . . . . . . . . . . . . . . . . . . Garrisons Compromised . | . . . . . . . . . . . . . . . . . . . . . . . . . . . . . . . . . Overloaded Fab Kills . | . . . . . . . . . . . . . . . . . . . . . . . . . . . . . . . . . Hacking | -11 -10 -10 -10 -9 -8 -7 -7 -7 -7 -6 -6 -6 -6 -6 -5 -5 -5 -5 -5 -4 -4 -4 -4 -4 -3 -3 -3 -3 -2 -2 -1 -1 --------- Run | Scr Mat Min Exi Min Mat Fac Low Low Zio Pro Fac Low Low Dat Pro Fac Upp Upp Zhi Pro Fac Upp Upp War Pro Res Arm Lab Res DSF Acc Com Machines Accessed 40 | . 4 1 2 . 6 3 1 . . . . 1 . 4 . 1 1 1 4 . 2 . . 3 1 1 1 1 1 . 1 . Terminals 13 | . 2 . . . 6 2 . . . . . . . . . . . 1 . . . . . . 1 . . . 1 . . . Fabricators 4 | . . . . . . . . . . . . . . . . 1 . . . . 2 . . . . . 1 . . . . . Repair Stations . | . . . . . . . . . . . . . . . . . . . . . . . . . . . . . . . . . Recycling Units 3 | . 2 . . . . 1 . . . . . . . . . . . . . . . . . . . . . . . . . . Scanalyzers . | . . . . . . . . . . . . . . . . . . . . . . . . . . . . . . . . . Garrison Access 2 | . . . . . . . . . . . . . . . . . . . . . . . . . . 1 . . . . 1 . Total Hacks 105 | . 9 1 2 . 12 6 1 . . . . 1 . 29 . 2 1 1 17 . 3 . . 8 1 2 1 4 2 . 2 . Successful 79 | . 5 1 2 . 3 2 1 . . . . 1 . 29 . 1 1 1 17 . 1 . . 8 1 . . 4 1 . . . Failed 26 | . 4 . . . 9 4 . . . . . . . . . 1 . . . . 2 . . . . 2 1 . 1 . 2 . Catastrophic 8 | . . . . . 4 1 . . . . . . . . . 1 . . . . . . . . . . 1 . . . 1 . Database Lockouts . | . . . . . . . . . . . . . . . . . . . . . . . . . . . . . . . . . Manual 89 | . 5 . 1 . 8 4 . . . . . . . . 3 14 . . . . 5 . . 1 . 12 11 1 3 . 18 3 Terminals 28 | . 7 . . . 12 5 . . . . . . . . . . . 1 . . . . . . 1 . . . 2 . . . Fabricators 6 | . . . . . . . . . . . . . . . . 2 . . . . 3 . . . . . 1 . . . . . Repair Stations . | . . . . . . . . . . . . . . . . . . . . . . . . . . . . . . . . . Recycling Units 3 | . 2 . . . . 1 . . . . . . . . . . . . . . . . . . . . . . . . . . Scanalyzers . | . . . . . . . . . . . . . . . . . . . . . . . . . . . . . . . . . Garrison Access 4 | . . . . . . . . . . . . . . . . . . . . . . . . . . 2 . . . . 2 . Terminal Hacks 75 | . 3 1 2 . 3 2 1 . . . . 1 . 29 . . 1 1 17 . . . . 8 1 . . 4 1 . . . Record 31 | . . . 1 . . . . . . . . . . 11 . . 1 1 5 . . . . 8 1 . . 3 . . . . Part Schematic 15 | . . . . . . . . . . . . . . 11 . . . . 4 . . . . . . . . . . . . . Robot Schematic 4 | . . . . . . . . . . . . . . 4 . . . . . . . . . . . . . . . . . . Robot Analysis 7 | . . . . . 2 1 . . . . . . . . . . . . 4 . . . . . . . . . . . . . Prototype ID Bank 7 | . . . . . . . . . . . . . . 3 . . . . 4 . . . . . . . . . . . . . Open Door 3 | . . 1 . . . . 1 . . . . 1 . . . . . . . . . . . . . . . . . . . . Open DSF 1 | . . . . . . . . . . . . . . . . . . . . . . . . . . . . . 1 . . . Branch Access Points 1 | . . . . . . 1 . . . . . . . . . . . . . . . . . . . . . . . . . . Unreport Threat 1 | . 1 . . . . . . . . . . . . . . . . . . . . . . . . . . . . . . . Locate Traps 3 | . 2 . . . 1 . . . . . . . . . . . . . . . . . . . . . . . . . . . EX-Prototype ID Bank 1 | . . . 1 . . . . . . . . . . . . . . . . . . . . . . . . . . . . . Release Object 1 | . . . . . . . . . . . . . . . . . . . . . . . . . . . . 1 . . . . Fabricator Hacks 1 | . . . . . . . . . . . . . . . . . . . . . 1 . . . . . . . . . . . Build 1 | . . . . . . . . . . . . . . . . . . . . . 1 . . . . . . . . . . . Repair Station Hacks . | . . . . . . . . . . . . . . . . . . . . . . . . . . . . . . . . . Recycling Unit Hacks . | . . . . . . . . . . . . . . . . . . . . . . . . . . . . . . . . . Scanalyzer . | . . . . . . . . . . . . . . . . . . . . . . . . . . . . . . . . . Garrison Access Hacks . | . . . . . . . . . . . . . . . . . . . . . . . . . . . . . . . . . Unauthorized Hacks 3 | . 2 . . . . . . . . . . . . . . 1 . . . . . . . . . . . . . . . . Terminals . | . . . . . . . . . . . . . . . . . . . . . . . . . . . . . . . . . Fabricators 1 | . . . . . . . . . . . . . . . . 1 . . . . . . . . . . . . . . . . Haulers 1 | . . . . . . . . . . . . . . . . 1 . . . . . . . . . . . . . . . . Repair Stations . | . . . . . . . . . . . . . . . . . . . . . . . . . . . . . . . . . Recycling Units 2 | . 2 . . . . . . . . . . . . . . . . . . . . . . . . . . . . . . . Tunnel 2 | . 2 . . . . . . . . . . . . . . . . . . . . . . . . . . . . . . . Scanalyzers . | . . . . . . . . . . . . . . . . . . . . . . . . . . . . . . . . . Garrison Access . | . . . . . . . . . . . . . . . . . . . . . . . . . . . . . . . . . Data Cores Recovered . | . . . . . . . . . . . . . . . . . . . . . . . . . . . . . . . . . Used . | . . . . . . . . . . . . . . . . . . . . . . . . . . . . . . . . . Hacking Detections 18 | . 2 . . . 6 3 . . . . . . . . . 1 . . . . 2 . . . . 1 1 . 1 . 1 . Full Trace Events 1 | . . . . . . . . . . . . . . . . . . . . . . . . . . . . . . . 1 . Feedback Events 1 | . . . . . . . . . . . . . . . . . . . . . . . . . . . . . . . 1 . Corruption 1 | . . . . . . . . . . . . . . . . . . . . . . . . . . . . . . . 1 . Feedback Blocked . | . . . . . . . . . . . . . . . . . . . . . . . . . . . . . . . . . Robot Schematics Acquired 4 | . . . . . . . . . . . . . . 4 . . . . . . . . . . . . . . . . . . Robots Built . | . . . . . . . . . . . . . . . . . . . . . . . . . . . . . . . . . Authchips . | . . . . . . . . . . . . . . . . . . . . . . . . . . . . . . . . . Time . | . . . . . . . . . . . . . . . . . . . . . . . . . . . . . . . . . Total Robot Build Rating . | . . . . . . . . . . . . . . . . . . . . . . . . . . . . . . . . . Part Schematics Acquired 15 | . . . . . . . . . . . . . . 11 . . . . 4 . . . . . . . . . . . . . Parts Built 1 | . . . . . . . . . . . . . . . . . . . . . 1 . . . . . . . . . . . Authchips . | . . . . . . . . . . . . . . . . . . . . . . . . . . . . . . . . . Time 64 | . . . . . . . . . . . . . . . . . . . . . 64 . . . . . . . . . . . Total Part Build Rating 8 | . . . . . . . . . . . . . . . . . . . . . 8 . . . . . . . . . . . Parts Repaired . | . . . . . . . . . . . . . . . . . . . . . . . . . . . . . . . . . Time . | . . . . . . . . . . . . . . . . . . . . . . . . . . . . . . . . . Parts Recycled . | . . . . . . . . . . . . . . . . . . . . . . . . . . . . . . . . . Recycled Matter . | . . . . . . . . . . . . . . . . . . . . . . . . . . . . . . . . . Retrieved Matter . | . . . . . . . . . . . . . . . . . . . . . . . . . . . . . . . . . Retrieved Components . | . . . . . . . . . . . . . . . . . . . . . . . . . . . . . . . . . Parts Scanalyzed . | . . . . . . . . . . . . . . . . . . . . . . . . . . . . . . . . . Part Schematics Acquired . | . . . . . . . . . . . . . . . . . . . . . . . . . . . . . . . . . Parts Damaged . | . . . . . . . . . . . . . . . . . . . . . . . . . . . . . . . . . Bothacking | -11 -10 -10 -10 -9 -8 -7 -7 -7 -7 -6 -6 -6 -6 -6 -5 -5 -5 -5 -5 -4 -4 -4 -4 -4 -3 -3 -3 -3 -2 -2 -1 -1 ------------ Run | Scr Mat Min Exi Min Mat Fac Low Low Zio Pro Fac Low Low Dat Pro Fac Upp Upp Zhi Pro Fac Upp Upp War Pro Res Arm Lab Res DSF Acc Com Used RIF Installer . | . . . . . . . . . . . . . . . . . . . . . . . . . . . . . . . . . Robots Hacked 1 | . . . . . . . . . . . . . . . . . . . . . . . . 1 . . . . . . . . Non-combat . | . . . . . . . . . . . . . . . . . . . . . . . . . . . . . . . . . Combat 1 | . . . . . . . . . . . . . . . . . . . . . . . . 1 . . . . . . . . Robot Hacks Applied 1 | . . . . . . . . . . . . . . . . . . . . . . . . 1 . . . . . . . . parse_system 1 | . . . . . . . . . . . . . . . . . . . . . . . . 1 . . . . . . . . Relay Couplers Released 8 | . . . . . . 3 . . . . . . . . . . . . . . . . . . . 3 . . . . 2 . Machine Destruction 2 | . . . . . . . . . . . . . . . . . . . . . . . . . . . . . . . 2 . Programmers 6 | . . . . . . 3 . . . . . . . . . . . . . . . . . . . 3 . . . . . . Fabnet Peak Effective % . | . . . . . . . . . . . . . . . . . . . . . . . . . . . . . . . . . Robots Rewired 12 | . . . 3 . . . . . . . . . 2 . 2 . . . . 2 . . . 3 . . . . . . . . Allies Hacked 1 | . . . . . . . . . . . . . . . . . . . . . . . . 1 . . . . . . . . Hacks Repelled . | . . . . . . . . . . . . . . . . . . . . . . . . . . . . . . . . . Allies | -11 -10 -10 -10 -9 -8 -7 -7 -7 -7 -6 -6 -6 -6 -6 -5 -5 -5 -5 -5 -4 -4 -4 -4 -4 -3 -3 -3 -3 -2 -2 -1 -1 -------- Run | Scr Mat Min Exi Min Mat Fac Low Low Zio Pro Fac Low Low Dat Pro Fac Upp Upp Zhi Pro Fac Upp Upp War Pro Res Arm Lab Res DSF Acc Com Total Allies 59 | . . . 3 . . . . . 10 . . . 2 . 5 8 . . . 2 . . . 3 . 4 6 . 1 . 2 13 Largest Group 10 | . . . 3 3 1 . . . 10 10 4 4 2 . 3 8 8 8 8 8 3 2 2 5 1 3 5 . 1 1 2 9 Highest-Rated Group 668 | . . . 37 37 21 . . . 303 303 154 154 49 . 288 457 457 453 453 453 233 184 184 354 135 269 668 . 32 32 297 127 Highest-Rated Ally 269 | . . . 21 21 21 . . . 40 40 40 40 29 . 96 135 135 135 135 135 135 135 135 135 135 269 269 . 32 32 269 15 Zionite Dispatches 12 | . . . . . . . . . . . . . . . . 3 . . . . . . . . . 2 4 . 1 . 2 . Heavy 1 | . . . . . . . . . . . . . . . . . . . . . . . . . . . 1 . . . . . Light 1 | . . . . . . . . . . . . . . . . 1 . . . . . . . . . . . . . . . . Fire 2 | . . . . . . . . . . . . . . . . 1 . . . . . . . . . 1 . . . . . . Hacker 1 | . . . . . . . . . . . . . . . . . . . . . . . . . . . 1 . . . . . Experimental 2 | . . . . . . . . . . . . . . . . . . . . . . . . . . 1 . . . . 1 . Hero 2 | . . . . . . . . . . . . . . . . 1 . . . . . . . . . . 1 . . . . . Explosive Resupply 1 | . . . . . . . . . . . . . . . . . . . . . . . . . . . 1 . . . . . Infowar Resupply 1 | . . . . . . . . . . . . . . . . . . . . . . . . . . . . . . . 1 . Zionite Resupply 1 | . . . . . . . . . . . . . . . . . . . . . . . . . . . . . 1 . . . Total Orders 39 | . . . . . . . . . . . . . . . . 2 . . . . 4 . . 7 . . 2 . 2 1 10 11 STAY 8 | . . . . . . . . . . . . . . . . . . . . . . . . 5 . . 1 . . 1 1 . FOLLOW 3 | . . . . . . . . . . . . . . . . . . . . . . . . 2 . . . . 1 . . . DROP 3 | . . . . . . . . . . . . . . . . . . . . . . . . . . . 1 . 1 . 1 . EXPLORE 20 | . . . . . . . . . . . . . . . . . . . . . 4 . . . . . . . . . 7 9 RETURN 5 | . . . . . . . . . . . . . . . . 2 . . . . . . . . . . . . . . 1 2 Ally Attacks 542 | . . . . 9 7 . . . . 85 2 10 3 . 53 12 15 . . 57 26 10 6 61 2 45 81 . . . 25 33 Total Damage 56665 | . . . . 72 152 . . . . 2737 36 770 37 . 1533 518 361 . . 4023 3824 1326 753 25374 516 4705 7104 . . . 2100 724 Kills 239 | . . . . 1 . . . . . 12 1 3 . . 9 5 3 . . 16 22 7 3 92 . 22 33 . . . 8 2 Allies Corrupted 3 | . . . . . . . . . . . . . . . . 1 . . . . . . . . . . 1 . . . 1 . Allies Melted 1 | . . . . . . . . . . . . . . . . . . . . . . . . 1 . . . . . . . . Intel | -11 -10 -10 -10 -9 -8 -7 -7 -7 -7 -6 -6 -6 -6 -6 -5 -5 -5 -5 -5 -4 -4 -4 -4 -4 -3 -3 -3 -3 -2 -2 -1 -1 ------- Run | Scr Mat Min Exi Min Mat Fac Low Low Zio Pro Fac Low Low Dat Pro Fac Upp Upp Zhi Pro Fac Upp Upp War Pro Res Arm Lab Res DSF Acc Com Robot Analysis Total 7 | . . . . . 2 1 . . . . . . . . . . . . 4 . . . . . . . . . . . . . Derelict Logs Recovered 11 | . . . . 1 . . 1 . 2 1 . . 2 . 1 . . 1 . 1 . 1 . . . . . . . . . . Drone Launches 25 | . . . . . . . . . . . . . . . . 2 . . . . 4 . . . . . . . . . 7 12 Drone Recoveries 21 | . . . . . . . . . . . . . . . . 2 . . . . 2 . . . . . . . . . 7 10 Zionite Intel Received 4 | . . . . . . . . . . . . . . . . 1 . . . . . . . . . 1 . . . . 2 . Branch Access 2 | . . . . . . . . . . . . . . . . 1 . . . . . . . . . 1 . . . . . . Emergency Access 1 | . . . . . . . . . . . . . . . . . . . . . . . . . . . . . . . 1 . Active Terminals 1 | . . . . . . . . . . . . . . . . . . . . . . . . . . . . . . . 1 . Exploration | -11 -10 -10 -10 -9 -8 -7 -7 -7 -7 -6 -6 -6 -6 -6 -5 -5 -5 -5 -5 -4 -4 -4 -4 -4 -3 -3 -3 -3 -2 -2 -1 -1 ------------- Run | Scr Mat Min Exi Min Mat Fac Low Low Zio Pro Fac Low Low Dat Pro Fac Upp Upp Zhi Pro Fac Upp Upp War Pro Res Arm Lab Res DSF Acc Com Turns Passed 31402 | 86 705 181 1512 646 1307 880 1103 754 2977 1042 269 1005 1214 229 1183 980 1177 423 431 1905 920 532 287 1736 1414 1625 911 585 253 296 1764 1070 Spaces Moved 13224 | 27 290 83 647 264 441 282 436 292 1211 402 97 358 444 92 427 333 471 168 152 765 506 324 178 687 764 758 460 314 147 106 814 484 Core 171 | . . . . . . . . . . . . . . . . . . . . . . . . . . . . . . . . 171 Treads 12660 | 27 290 83 257 264 441 282 436 292 1211 402 97 358 444 92 427 333 471 168 152 765 506 324 178 687 764 758 460 314 147 106 814 310 Legs 390 | . . . 390 . . . . . . . . . . . . . . . . . . . . . . . . . . . . . Wheels . | . . . . . . . . . . . . . . . . . . . . . . . . . . . . . . . . . Hover . | . . . . . . . . . . . . . . . . . . . . . . . . . . . . . . . . . Flight 3 | . . . . . . . . . . . . . . . . . . . . . . . . . . . . . . . . 3 Fastest Speed 35 | 160 160 160 160 160 160 240 242 245 245 241 245 245 247 247 246 240 240 240 240 240 160 160 160 160 160 145 158 158 158 150 150 35 Average Speed 199 | 160 170 189 199 214 209 240 243 245 245 242 245 246 247 247 246 246 240 240 240 240 160 160 160 160 160 148 159 158 158 152 150 114 Slowest Speed 326 | 160 240 240 240 240 240 242 245 245 245 246 245 247 247 247 247 326 240 240 240 240 240 160 160 160 160 250 161 158 158 158 150 200 Overloaded Moves . | . . . . . . . . . . . . . . . . . . . . . . . . . . . . . . . . . Propulsion Burnouts . | . . . . . . . . . . . . . . . . . . . . . . . . . . . . . . . . . Robots Hopped 1 | . . . . . . . . . . . . . . . . . . . . . . . . . . . . . . . . 1 Cave-ins Triggered 1 | . . 1 . . . . . . . . . . . . . . . . . . . . . . . . . . . . . . Teleports 1 | . . . . . . . . . . . . . . . . . . . . . . . . . . . . . . . 1 . Exploration Rate (%) 48 | 3 55 28 89 48 48 12 58 46 89 60 2 51 69 69 61 15 56 38 60 77 20 55 39 62 83 20 47 98 5 75 41 21 Regions Visited 32 Branch Regions 22 Pre-discovered Areas 13 | . 2 . 1 . . . . . 3 . . . 1 1 . . . . 3 1 . . . 1 . . . . . . . . Known Exits Taken 17 | . . . . . . 1 . . . 1 1 . . . 1 1 1 1 1 1 1 1 1 1 1 1 . 1 1 . . . Unknown Exits Taken 14 | 1 1 1 1 1 1 . 1 1 1 . . 1 1 1 . . . . . . . . . . . . 1 . . . 1 . Scrap Searched 35 | . . . . 1 . . 3 1 3 3 . 7 1 . 3 . 3 2 . 2 . 3 . . 3 . . . . . . . Spaces Dug 267 | . . 3 . 7 1 5 1 2 . 5 . 9 27 . 2 39 . 1 . 3 2 3 . 9 18 22 18 1 5 5 57 22 Terrain Destroyed 904 | . 19 3 . 7 28 5 36 8 . 5 . 21 97 . 60 67 6 1 . 5 2 6 . 48 117 67 29 1 8 7 120 131 Melee 24 | . . . . . 1 5 1 2 . 5 . 9 . . . . . . . . . . . . . . . 1 . . . . Projectile 251 | . 1 3 . . . . . . . . . . . . 2 9 . 1 . 5 2 6 . 10 34 29 29 . 8 7 71 34 AOE 629 | . 18 . . 7 27 . 35 6 . . . 12 97 . 58 58 6 . . . . . . 38 83 38 . . . . 49 97 Terrain Rammed 5 | . . . . . . . . . . . . . . . . . . . . . . . . . . . . . . . . 5 Walls Destroyed . | . . . . . . . . . . . . . . . . . . . . . . . . . . . . . . . . . Machines Disabled . | . . . . . . . . . . . . . . . . . . . . . . . . . . . . . . . . . Actions | -11 -10 -10 -10 -9 -8 -7 -7 -7 -7 -6 -6 -6 -6 -6 -5 -5 -5 -5 -5 -4 -4 -4 -4 -4 -3 -3 -3 -3 -2 -2 -1 -1 --------- Run | Scr Mat Min Exi Min Mat Fac Low Low Zio Pro Fac Low Low Dat Pro Fac Upp Upp Zhi Pro Fac Upp Upp War Pro Res Arm Lab Res DSF Acc Com Total 16912 | 57 401 98 783 300 680 410 465 318 1221 451 123 438 531 95 515 444 494 176 193 808 601 331 179 1280 874 1170 638 398 168 196 1222 854 Wait 1206 | 10 36 1 . 1 45 9 1 6 . 10 . 12 38 . 1 28 1 . 5 10 73 2 1 504 27 186 22 6 5 11 76 79 Move 13190 | 26 289 82 646 263 440 281 435 291 1210 401 96 357 443 91 426 332 470 167 151 764 505 323 177 686 763 757 459 313 146 105 813 482 Hop 1 | . . . . . . . . . . . . . . . . . . . . . . . . . . . . . . . . 1 Pick Up 195 | 2 10 6 8 1 39 11 4 1 3 3 9 8 . . 5 5 1 . 1 1 3 . . 1 2 23 15 6 1 5 11 10 Fast Attach 188 | 1 1 . 2 . 6 3 . 2 1 5 . 4 2 2 14 16 . . 7 2 1 . . 7 3 18 14 19 2 6 24 26 Attach 90 | 1 4 2 1 . 11 2 4 . . . 2 1 . . 2 1 . . 1 2 1 . . . 1 11 4 6 2 1 10 20 Detach 45 | . . . . . 2 2 . . . . . 1 . . 1 2 . . 1 1 . . . 1 . 8 3 4 . 2 13 4 Swap 268 | 1 5 2 10 8 20 23 10 8 4 8 5 18 9 . 15 12 . . 1 2 5 . . 2 8 35 9 3 . 5 28 12 Drop 288 | 3 2 2 8 1 32 14 3 1 3 8 7 12 2 2 15 12 1 . 7 3 3 . . 10 5 33 25 23 2 10 27 12 Fire 1199 | 13 53 3 42 15 81 60 3 5 . 11 3 15 18 . 20 31 12 1 . 16 8 6 1 48 64 99 87 16 10 51 213 194 Melee 48 | . . . 1 8 1 5 5 4 . 5 . 10 . . . . . . . . . . . . . . . 2 . . 3 4 Ram 7 | . . . . . . . . . . . . . . . . . . . . . . . . . . . . . . . . 7 Kick . | . . . . . . . . . . . . . . . . . . . . . . . . . . . . . . . . . Crush 54 | . 1 . . 3 3 . . . . . 1 . . . . 3 9 8 19 . 2 . . . 1 . . . . . 4 . Escape Stasis 7 | . . . . . . . . . . . . . . . . 2 . . . 2 . . . . . . . . . . . 3 Rewire 126 | . . . 65 . . . . . . . . . 19 . 16 . . . . 5 . . . 21 . . . . . . . . Trap . | . . . . . . . . . . . . . . . . . . . . . . . . . . . . . . . . . Miscellaneous . | . . . . . . . . . . . . . . . . . . . . . . . . . . . . . . . . . Route ------- -11/Scrapyard -10/Materials (discovered 2 exits: [*Mat] / *Min) -10/Mines (discovered 2 exits: [*Mat] / *Exi) -10/Exiles -9/Mines (discovered 2 exits: *Mat x2) -8/Materials -7/Factory (discovered 4 exits: Sto x2 / *Low x2) -7/Lower Caves -7/Lower Caves -7/Zion -6/Proximity Caves -6/Factory (discovered 3 exits: Fac / *Low / [*Ext]) -6/Lower Caves -6/Lower Caves (discovered 2 exits: *Fac / *Dat) -6/Data Miner -5/Proximity Caves -5/Factory (discovered 3 exits: *Fac / *Upp x2) -5/Upper Caves -5/Upper Caves -5/Zhirov -4/Proximity Caves -4/Factory -4/Upper Caves -4/Upper Caves -4/Warlord -3/Proximity Caves -3/Research (discovered 5 exits: *Res x2 / *Arm / *Tes x2) -3/Armory (discovered 3 exits: *Res x2 / *Lab) -3/Lab -2/Research -2/DSF -1/Access (discovered 2 exits: [Sur] / *Com) -1/Command History --------- Turn | Location | Event 6 | -11/Scrapyard | Discovered new exit (range 3) 87 | -11/Scrapyard | Entered Materials 308 | -10/Materials | Build established: Mutant 459 | -10/Materials | Discovered new exit (range 14) 675 | -10/Materials | Lost 3 parts (1p1n1w) 706 | -10/Materials | Discovered new exit (range 15) 792 | -10/Materials | Entered Mines 817 | -10/Mines | Met a Derelict shopkeep closing up shop 899 | -10/Mines | Crushed by falling debris 899 | -10/Mines | Core integrity fell below 50% 899 | -10/Mines | Discovered new exit (range 10) 963 | -10/Mines | Deemed a non-threat by the Exiles lab entrance 963 | -10/Mines | Discovered new exit (range 5) 973 | -10/Mines | Entered Exiles 973 | -10/Exiles | Found Exiles lab destroyed 1208 | -10/Exiles | Build established: Scavenger-Mutant 1567 | -10/Exiles | Learned location of Zion (-7) 1622 | -10/Exiles | Build established: Mutant 1675 | -10/Exiles | Opened EX-Vault 1693 | -10/Exiles | Found 0b10 Alert Chip 2466 | -10/Exiles | Discovered new exit (range 10) 2485 | -10/Exiles | Entered Mines 2485 | -9/Mines | Accompanied by 3 allies 2548 | -9/Mines | Excavation squad dispatched 2548 | -9/Mines | A large section of the Mines collapsed 2615 | -9/Mines | Learned Materials garrison access intel 2651 | -9/Mines | Discovered new exit (range 6) 2773 | -9/Mines | Discovered new exit (range 8) 3131 | -9/Mines | Entered Materials 3131 | -8/Materials | Accompanied by 1 ally 3131 | -8/Materials | Evolved 4 slots: Propulsion x2, Utility x2 3420 | -8/Materials | Build established: Scavenger-Mutant 3563 | -8/Materials | Destroyed 7 combat bots 3807 | -8/Materials | Build established: Mutant 4004 | -8/Materials | Destroyed 8 combat bots 4112 | -8/Materials | Found Prototype Device 4353 | -8/Materials | Build established: Scavenger-Mutant 4400 | -8/Materials | Discovered new exit (range 15) 4438 | -8/Materials | Entered Factory 4438 | -7/Factory | Evolved 2 slots: Power x1, Utility x1 4893 | -7/Factory | Identified exit to Storage 4893 | -7/Factory | Identified exit to Lower Caves 5013 | -7/Factory | Found Prototype Launcher 5014 | -7/Factory | Identified Rocket Array 5182 | -7/Factory | Garrison activated, responded to threat 5318 | -7/Factory | Entered Lower Caves 5832 | -7/Lower Caves | Ambushed by wild Derelicts 5987 | -7/Lower Caves | Learned Factory terminal intel 6046 | -7/Lower Caves | Discovered new exit (range 7) 6421 | -7/Lower Caves | Entered another Lower Caves area 7011 | -7/Lower Caves | Found Alien Artifact 7011 | -7/Lower Caves | Identified Core Expander 7011 | -7/Lower Caves | Installed Core Expander, added new Power slot 7162 | -7/Lower Caves | Discovered new exit (range 6) 7175 | -7/Lower Caves | Entered Zion 7362 | -7/Zion | Discovered new exit (range 13) 7563 | -7/Zion | Given A8's code to call for help 8070 | -7/Zion | Received a visual enhancement algorithm 8087 | -7/Zion | Learned 4 Factory zone layouts 8129 | -7/Zion | Found Prototype Device 8404 | -7/Zion | Learned Factory garrison access intel 8446 | -7/Zion | Given the Hacking Drone Bay 8451 | -7/Zion | Found Prototype Device 8590 | -7/Zion | Learned Factory security intel 8656 | -7/Zion | Learned location of Quarantine (-2) 8838 | -7/Zion | Visited the Megawrench Repair Shop 8838 | -7/Zion | Megawrench repaired 11 parts 9173 | -7/Zion | Imprinted 9175 | -7/Zion | Declared Zion's savior 9501 | -7/Zion | Gained Derelict followers 9585 | -7/Zion | Learned location of Armory (-3) 10083 | -7/Zion | Gained Derelict followers 10152 | -7/Zion | Entered Proximity Caves 10152 | -6/Proximity Caves | Accompanied by 10 allies 10718 | -6/Proximity Caves | Attracted the attention of an 0b10 checkpoint 10765 | -6/Proximity Caves | Identified exit to Factory 11012 | -6/Proximity Caves | Spotted B-75 Beast 11031 | -6/Proximity Caves | Allies destroyed B-75 Beast 11036 | -6/Proximity Caves | Build established: Generator-Mutant 11091 | -6/Proximity Caves | System corruption reached 10% 11194 | -6/Proximity Caves | Entered Factory 11194 | -6/Factory | Accompanied by 4 allies 11194 | -6/Factory | Evolved 2 slots: Utility x2 11195 | -6/Factory | Identified exit to Factory 11197 | -6/Factory | Loaded intel: 27 terminal locations 11198 | -6/Factory | Loaded intel: 4 garrison access locations 11385 | -6/Factory | Build established: Scavenger-Mutant 11418 | -6/Factory | Discovered new exit (range 10) 11431 | -6/Factory | Discovered new exit (range 15) 11446 | -6/Factory | Identified exit to Lower Caves 11463 | -6/Factory | Entered Lower Caves 11463 | -6/Lower Caves | Accompanied by 4 allies 11764 | -6/Lower Caves | Spotted B-75 Beast 11793 | -6/Lower Caves | Destroyed B-75 Beast 12157 | -6/Lower Caves | Attracted the attention of an 0b10 checkpoint 12391 | -6/Lower Caves | Discovered new exit (range 15) 12468 | -6/Lower Caves | Entered another Lower Caves area 12592 | -6/Lower Caves | Learned Factory security intel 12635 | -6/Lower Caves | Discovered exit to Factory (range 9) 13094 | -6/Lower Caves | Attracted the attention of an 0b10 outpost 13138 | -6/Lower Caves | Destroyed 7 combat bots 13445 | -6/Lower Caves | Learned location of Extension (-6) 13469 | -6/Lower Caves | Discovered new exit (range 4) 13682 | -6/Lower Caves | Entered Data Miner 13683 | -6/Data Miner | Discovered new exit (range 6) 13730 | -6/Data Miner | Met Data Miner 13777 | -6/Data Miner | Learned location of Section 7 (-2) 13777 | -6/Data Miner | Acquired the access code to Warlord's prototype stash 13817 | -6/Data Miner | Received God Mode back door access code from Data Miner 13911 | -6/Data Miner | Entered Proximity Caves 13913 | -5/Proximity Caves | Attracted the attention of an 0b10 checkpoint 14094 | -5/Proximity Caves | Acquired the password to a Derelict Tinkerer's latest research 14115 | -5/Proximity Caves | Enhanced Grunt warped into view, answering call for help 14117 | -5/Proximity Caves | Found Prototype Special Weapon 14119 | -5/Proximity Caves | Enhanced Grunt warped into view, answering call for help 14253 | -5/Proximity Caves | Caught by Unaware searching for contraband prototypes 14380 | -5/Proximity Caves | System corruption reached 10% 14553 | -5/Proximity Caves | Attracted the attention of an 0b10 outpost 14903 | -5/Proximity Caves | Caught by Unaware searching for contraband prototypes 14989 | -5/Proximity Caves | Learned 8 Factory zone layouts 15054 | -5/Proximity Caves | Discovered exit to Factory (range 16) 15094 | -5/Proximity Caves | Entered Factory 15094 | -5/Factory | Accompanied by 3 allies 15094 | -5/Factory | Evolved 2 slots: Utility x2 15095 | -5/Factory | Identified Active Sensor Suite 15531 | -5/Factory | Retrieved Zion intel report: Branch Access 15531 | -5/Factory | Identified exit to Upper Caves 15695 | -5/Factory | Discovered new exit (range 15) 15740 | -5/Factory | Identified Hacking Drone Bay 15994 | -5/Factory | First assault squad dispatched 16008 | -5/Factory | Zion hero teleported in (99-TNT) 16017 | -5/Factory | Incoming assault squad redirected 16022 | -5/Factory | Zion Fire squad teleported in 16039 | -5/Factory | Zion Light squad teleported in 16074 | -5/Factory | Entered Upper Caves 16074 | -5/Upper Caves | Accompanied by 8 allies (99-TNT) 16420 | -5/Upper Caves | Attracted the attention of an 0b10 checkpoint 16877 | -5/Upper Caves | Discovered new exit (range 14) 17248 | -5/Upper Caves | Identified exit to Upper Caves 17251 | -5/Upper Caves | Entered another Upper Caves area 17251 | -5/Upper Caves | Accompanied by 8 allies (99-TNT) 17319 | -5/Upper Caves | Learned Factory trap positions 17659 | -5/Upper Caves | Discovered new exit (range 5) 17671 | -5/Upper Caves | Identified exit to Zhirov 17674 | -5/Upper Caves | Entered Zhirov 17674 | -5/Zhirov | Accompanied by 8 allies (99-TNT) 17676 | -5/Zhirov | Discovered new exit (range 4) 17719 | -5/Zhirov | Met Zhirov 17765 | -5/Zhirov | Learned location of Testing (-3) 17765 | -5/Zhirov | Learned location of Command (-1) 17789 | -5/Zhirov | Zhirov requested help retrieving the SGEMP Prototype 17825 | -5/Zhirov | Found Alien Artifact 17825 | -5/Zhirov | Identified Integrated Reactor 17825 | -5/Zhirov | Installed Integrated Reactor, increased core energy generation (+10) 17995 | -5/Zhirov | Found Alien Artifact 18103 | -5/Zhirov | Identified exit to Proximity Caves 18105 | -5/Zhirov | Entered Proximity Caves 18105 | -4/Proximity Caves | Accompanied by 8 allies (99-TNT) 18386 | -4/Proximity Caves | Build established: Generator-Skirmisher 18752 | -4/Proximity Caves | Build established: Generator-Mutant 19533 | -4/Proximity Caves | Discovered new exit (range 15) 19603 | -4/Proximity Caves | Build established: Generator-Skirmisher 19713 | -4/Proximity Caves | Found Prototype Launcher 19713 | -4/Proximity Caves | Identified Mni. Smartbomb Launcher 19744 | -4/Proximity Caves | Found Mni. Smartbomb Launcher 20005 | -4/Proximity Caves | Identified exit to Factory 20010 | -4/Proximity Caves | Entered Factory 20010 | -4/Factory | Accompanied by 3 allies (99-TNT) 20010 | -4/Factory | Evolved 2 slots: Propulsion x2 20011 | -4/Factory | Loaded intel: 93 trap records 20134 | -4/Factory | Fabricated Com. HERF Cannon (x1) 20516 | -4/Factory | Build established: Generator-Mutant 20760 | -4/Factory | First assault squad dispatched 20776 | -4/Factory | Incoming assault squad redirected 20846 | -4/Factory | Discovered new exit (range 22) 20888 | -4/Factory | Identified exit to Upper Caves 20917 | -4/Factory | Incoming investigation squad redirected 20930 | -4/Factory | Entered Upper Caves 20930 | -4/Upper Caves | Accompanied by 2 allies (99-TNT) 21189 | -4/Upper Caves | Learned location of 2 exits from Research 21446 | -4/Upper Caves | Discovered new exit (range 12) 21461 | -4/Upper Caves | Identified exit to Upper Caves 21462 | -4/Upper Caves | Entered another Upper Caves area 21462 | -4/Upper Caves | Accompanied by 2 allies (99-TNT) 21667 | -4/Upper Caves | Discovered new exit (range 13) 21746 | -4/Upper Caves | Identified exit to Warlord 21749 | -4/Upper Caves | Entered Warlord 21749 | -4/Warlord | Accompanied by 2 allies (99-TNT) 21988 | -4/Warlord | Learned Quarantine security intel 21988 | -4/Warlord | Learned Factory scanalyzer intel 21988 | -4/Warlord | Learned Armory terminal intel 21988 | -4/Warlord | Learned Armory fabricator intel 21988 | -4/Warlord | Learned Research fabricator intel 21989 | -4/Warlord | Learned 4 Command zone layouts 21991 | -4/Warlord | Learned Quarantine emergency access door positions 22380 | -4/Warlord | Rebuked by Warlord 22396 | -4/Warlord | Opened Warlord's prototype stash 22401 | -4/Warlord | Found Prototype Reactor 22401 | -4/Warlord | Identified Vortex Chain Reactor 22405 | -4/Warlord | Warlord's base attacked by MAIN.C 22409 | -4/Warlord | Found Prototype Device 22409 | -4/Warlord | Identified Exp. Cloaking Device 22681 | -4/Warlord | Spotted B-86 Titan 22685 | -4/Warlord | Allies destroyed B-86 Titan 22755 | -4/Warlord | Warlord forces counterattacked 22758 | -4/Warlord | Spotted Striker 22764 | -4/Warlord | Allies destroyed Striker 22777 | -4/Warlord | Spotted B-90 Cyclops 22782 | -4/Warlord | Spotted Striker 22787 | -4/Warlord | Allies destroyed B-90 Cyclops 22812 | -4/Warlord | Spotted Striker 22814 | -4/Warlord | Spotted Striker 22815 | -4/Warlord | P-80 Master assimilated allied Sentinel 7a 22815 | -4/Warlord | Spotted Executioner 22817 | -4/Warlord | Allies destroyed Striker 22817 | -4/Warlord | Allies destroyed Executioner 22820 | -4/Warlord | Allies destroyed Striker 23080 | -4/Warlord | Warlord base infiltrated, sounded retreat 23099 | -4/Warlord | Spotted B-90 Cyclops 23101 | -4/Warlord | Allies destroyed B-90 Cyclops 23165 | -4/Warlord | Spotted B-90 Cyclops 23169 | -4/Warlord | Allies destroyed B-90 Cyclops 23212 | -4/Warlord | Spotted Striker 23219 | -4/Warlord | Allies destroyed Striker 23219 | -4/Warlord | Spotted Executioner 23245 | -4/Warlord | Discovered new exit (range 8) 23254 | -4/Warlord | Identified exit to Proximity Caves 23449 | -4/Warlord | Spotted Striker 23450 | -4/Warlord | Allies destroyed Striker 23458 | -4/Warlord | Spotted Executioner 23472 | -4/Warlord | Spotted Executioner 23475 | -4/Warlord | Allies destroyed Executioner 23481 | -4/Warlord | Destroyed Executioner 23485 | -4/Warlord | Entered Proximity Caves 23485 | -3/Proximity Caves | Accompanied by 1 ally (99-TNT) 23726 | -3/Proximity Caves | Found Alien Artifact 24845 | -3/Proximity Caves | Discovered new exit (range 11) 24897 | -3/Proximity Caves | Identified exit to Research 24899 | -3/Proximity Caves | Entered Research 24899 | -3/Research | Evolved 2 slots: Utility x2 24900 | -3/Research | Identified exit to Research 24901 | -3/Research | Loaded intel: 4 fabricator locations 25336 | -3/Research | Identified Mobile Refinery Mk. CCLXVII 25343 | -3/Research | Identified Molecular Deconstructor 25354 | -3/Research | Found Prototype Device 25375 | -3/Research | Identified Exp. Thermal Shield 25431 | -3/Research | Incoming investigation squad redirected 25632 | -3/Research | Identified Dimensional Node Initializer 25632 | -3/Research | Initialized slip node 25786 | -3/Research | Retrieved Zion intel report: Branch Access 25786 | -3/Research | Identified exit to Armory 25786 | -3/Research | Identified exit to Testing 25787 | -3/Research | Zion Fire squad teleported in 25927 | -3/Research | Zion Experimental squad teleported in 26011 | -3/Research | Found Quantum Capacitor 26360 | -3/Research | Cargo convoy interrupted 26360 | -3/Research | Spotted Executioner 26360 | -3/Research | Spotted Executioner 26369 | -3/Research | Allies destroyed Executioner 26369 | -3/Research | Spotted Striker 26372 | -3/Research | Spotted Striker 26379 | -3/Research | Incoming assault squad redirected 26383 | -3/Research | Allies destroyed Striker 26392 | -3/Research | Allies destroyed Executioner 26398 | -3/Research | Allies destroyed Striker 26407 | -3/Research | Terminal network hard line cut 26434 | -3/Research | Lost 3 parts (1p2u) 26434 | -3/Research | Found Prototype Device 26434 | -3/Research | Identified Adv. Kinecellerator 26443 | -3/Research | Found Prototype Device 26443 | -3/Research | Identified Exp. EM Disruption Field 26452 | -3/Research | Found Prototype Processor 26452 | -3/Research | Identified Exp. Core Analyzer 26483 | -3/Research | Found Prototype Hackware 26524 | -3/Research | Entered Armory 26524 | -3/Armory | Accompanied by 1 ally 26525 | -3/Armory | Loaded intel: 11 terminal locations 26526 | -3/Armory | Loaded intel: 8 fabricator locations 26575 | -3/Armory | Found Prototype Launcher 26595 | -3/Armory | Found Prototype Launcher 26598 | -3/Armory | Found Prototype Launcher 26599 | -3/Armory | Identified Exp. Hacking Suite 26600 | -3/Armory | Identified Com. Tesla Bomb Launcher (x3) 26634 | -3/Armory | Zion hero teleported in (CL-ANK) 26666 | -3/Armory | Incoming investigation squad redirected 26743 | -3/Armory | Zion Hacker squad teleported in 26782 | -3/Armory | Discovered exit to Research (range 14) 26838 | -3/Armory | Zion Heavy squad teleported in 27057 | -3/Armory | Spotted B-86 Titan 27078 | -3/Armory | Allies destroyed B-86 Titan 27084 | -3/Armory | Found Prototype Impact Weapon 27224 | -3/Armory | Discovered exit to Research (range 13) 27307 | -3/Armory | Zion Explosive Resupply teleported in 27313 | -3/Armory | Found Prototype Launcher 27313 | -3/Armory | Identified Adv. Micro-nuke Launcher 27323 | -3/Armory | Identified CL-ANK's Mallet 27323 | -3/Armory | Found Prototype Launcher 27330 | -3/Armory | Identified Hellfire Missile Launcher 27425 | -3/Armory | Discovered new exit (range 4) 27435 | -3/Armory | Entered Lab 27435 | -3/Lab | Discovered exit to Research (range 10) 27455 | -3/Lab | Unable to decrypt terminal 27455 | -3/Lab | Opened the door to a hidden lab 27494 | -3/Lab | Gained access to the hidden lab's interior 27496 | -3/Lab | Detected by scanners 27505 | -3/Lab | Confronted by A5 27519 | -3/Lab | Destroyed A5 27535 | -3/Lab | Found Prototype Protection 27535 | -3/Lab | Identified Med. Regenerative Plating 27583 | -3/Lab | Found Prototype Energy Cannon 27583 | -3/Lab | Identified Potential Cannon 27592 | -3/Lab | Found Prototype Hackware 27597 | -3/Lab | Identified Deep Network Scanner 27618 | -3/Lab | Found Potential Cannon 27657 | -3/Lab | Found Alien Artifact 27657 | -3/Lab | Identified Integrated Mediator 27657 | -3/Lab | Installed Integrated Mediator, increased core attachment efficiency. 27678 | -3/Lab | Found Alien Artifact 27692 | -3/Lab | Found Alien Artifact 27754 | -3/Lab | Unable to decrypt terminal 27760 | -3/Lab | Found Alien Artifact 27760 | -3/Lab | Identified LC Capacitor 27864 | -3/Lab | Found Alien Artifact 27864 | -3/Lab | Identified Core Reset Matrix 27864 | -3/Lab | Identified Transdimensional Reconstructor (x2) 27864 | -3/Lab | Identified Core Regenerator 27864 | -3/Lab | Used Core Reset Matrix 27868 | -3/Lab | Sensed 1 artifact in vicinity 27937 | -3/Lab | Discovered exit to Research (range 16) 28002 | -3/Lab | Used Core Regenerator, restored core integrity (+122) 28020 | -3/Lab | Entered Research 28020 | -2/Research | Evolved 2 slots: Utility x2 28236 | -2/Research | Identified exit to DSF 28260 | -2/Research | Zion Zionite Resupply teleported in 28273 | -2/Research | Entered DSF 28273 | -2/DSF | Accompanied by 1 ally 28327 | -2/DSF | Additional patrols routed to DSF 28394 | -2/DSF | Found Prototype Device 28394 | -2/DSF | Identified Active Sensor Suite 28513 | -2/DSF | Discovered new exit (range 14) 28568 | -2/DSF | Identified exit to Access 28569 | -2/DSF | Entered Access 28569 | -1/Access | Evolved 2 slots: Power x1, Utility x1 28744 | -1/Access | Incoming investigation squad redirected 28847 | -1/Access | Incoming investigation squad redirected 28963 | -1/Access | Spotted B-99 Colossus 29262 | -1/Access | Found Quantum Capacitor 29267 | -1/Access | Found Quantum Capacitor 29336 | -1/Access | Retrieved Zion intel report: Active Terminals 29337 | -1/Access | Zion Experimental squad teleported in 29352 | -1/Access | Zion Infowar Resupply teleported in 29643 | -1/Access | Discovered new exit (range 24) 29704 | -1/Access | Retrieved Zion intel report: Emergency Access 29844 | -1/Access | Intercept squad dispatched 29860 | -1/Access | Spotted Tracker 29860 | -1/Access | Spotted Tracker 29870 | -1/Access | Destroyed Tracker 29874 | -1/Access | Allies destroyed Tracker 29886 | -1/Access | Spotted Combat Programmer 29893 | -1/Access | Destroyed Combat Programmer 29895 | -1/Access | Spotted Combat Programmer 29903 | -1/Access | Destroyed Combat Programmer 29913 | -1/Access | Found Prototype Protection 29914 | -1/Access | Identified Zio. Shade Armor 29926 | -1/Access | Found Prototype Processor 30037 | -1/Access | Terminal network hard line cut 30069 | -1/Access | First assault squad dispatched 30096 | -1/Access | Incoming assault squad redirected 30124 | -1/Access | High security lockdown imminent 30162 | -1/Access | Warped through subspace 30204 | -1/Access | High security lockdown engaged 30238 | -1/Access | Garrison activated, responded to threat 30288 | -1/Access | Discovered new exit (range 18) 30333 | -1/Access | Entered Command 30359 | -1/Command | Identified Exp. Targeting Computer 30612 | -1/Command | First assault squad dispatched 30614 | -1/Command | High security lockdown imminent 30694 | -1/Command | High security lockdown engaged 30805 | -1/Command | Spotted Striker 30824 | -1/Command | System corruption reached 10% 30834 | -1/Command | Spotted Executioner 30841 | -1/Command | Destroyed Striker 30873 | -1/Command | Destroyed 15 combat bots 30876 | -1/Command | Lost 4 parts (4u) 30896 | -1/Command | Scanned by Researcher 30907 | -1/Command | Destroyed Investigator 30917 | -1/Command | Destroyed Executioner 30938 | -1/Command | Destroyed 19 combat bots 30981 | -1/Command | System corruption reached 30% 31116 | -1/Command | Destroyed 16 combat bots 31117 | -1/Command | Lost 3 parts (1n2u) 31165 | -1/Command | Build established: Scavenger-Mutant 31223 | -1/Command | Spotted Striker 31223 | -1/Command | Spotted Executioner 31224 | -1/Command | Spotted Striker 31224 | -1/Command | Spotted Striker 31224 | -1/Command | Spotted Striker 31226 | -1/Command | Spotted Striker 31226 | -1/Command | Spotted Striker 31226 | -1/Command | Spotted Striker 31229 | -1/Command | Destroyed Executioner 31233 | -1/Command | Destroyed Striker 31235 | -1/Command | Destroyed Striker 31236 | -1/Command | Destroyed Striker 31240 | -1/Command | Destroyed Striker 31242 | -1/Command | Destroyed Striker 31244 | -1/Command | Destroyed Striker 31249 | -1/Command | Destroyed Striker 31278 | -1/Command | Spotted Striker 31286 | -1/Command | Released all parts (12) 31287 | -1/Command | Spotted Executioner 31287 | -1/Command | Spotted Executioner 31292 | -1/Command | Core integrity fell below 50% 31304 | -1/Command | Destroyed 27 combat bots 31319 | -1/Command | Emitted hypermatrix ping 31324 | -1/Command | Assembled emerged from beneath the floor 31335 | -1/Command | Assembled emerged from beneath the floor 31337 | -1/Command | Lost 16 parts (3p5n6u2w) 31384 | -1/Command | Core integrity fell below 20% 31403 | -1/Command | Phase Generator disabled 31403 | -1/Command | Destroyed Striker 31403 | -1/Command | Destroyed self via exploding Phase Generator Last Messages --------------- 31372_ System corrupted: Matter fused (-10). 31381_ Slammed into Phase Generator. 31381_ Destabilizing: System corrupted (+1). 31381_ CL-ANK's Mallet broken. 31381_ Destabilizing: Short circuit. 31383_ Slammed into Phase Generator. 31383_ Destabilizing: Core damaged (-48). 31387_ Dropped Broken CL-ANK's Mallet. 31388_ System corrupted: Component data lost. 31389_ Drone sends a signal. 31389_ Slammed into Phase Generator. 31389_ Destabilizing: System corrupted (+1). 31392_ Slammed into Phase Generator. 31392_ Destabilizing: System corrupted (+2). 31395_ Slammed into Phase Generator. 31395_ Destabilizing: Core damaged (-48). 31395_ Penetrated by Slug. 31395_ Slug penetrates Phase Generator. 31403_ Phase Generator explodes. 31403_ Striker destroyed. Map ----- +----------------------------------------------------+ | ????????????????????##???# " #????????????? | | ?????????????????????????# # #????????????? | | ?????????????????????????# # #????????????? | | ?????????????????????????# # #????????????? | | ?????????????????????????# # ! #????????????? | | ?????????????????????????# ##########????????????? | | ?????????????????#######?# ## !!= #?????????????? | | ?????????????????#] ### ## !!= #?????????????? | | ????????????????## ## # !== #?????????????? | | ????????????????#" "" + #?????????????? | | ????????????????## ## # #?????????????? | | ?????????????????# ] ### ## #?????????????? | | ?????????????????# #?# #########?????????????? | | ?????????????????# ### #?????????????????????? | | ?????????????????##+#####" ########??????????????? | | ?????????????????# p# #??????????????? | | ????????????????## # [ #??????????????? | | ????????????????#" Y# #??????????????? | | ????????????????## + = =!#??????????????? | | ?????????????????# # ==!#??????????????? | | ?????????????????# # == #??????????????? | | ?????????????????# ##### ########??????????????? | | ?????????????????# # #?????????????????? | | ??????#??????????# # #?????????????????? | | ??????#"########?# # #?????????????????? | | ??????# ### # @ ##????????????????? | | ??????# # w / """#????????????????? | | ??????# # ##### "##????????????????? | | ??????# "" # #???# "#?????????????????? | | ??????#"""" + #???# " "#?????????????????? | | ??????#"""" # #???# """""#?????????????????? | | ?????## "" # #???##############??????????????? | | ?????#" # ######## #??????????????? | | ?????## # # # * !!]#??????????????? | | ??????#########" # # !!]#??????????????? | | ??????????????## # = # ![ #??????????????? | | ???????????????# # ####+###########?????????? | | ???????????????# # [ + # #?????????? | | ???????????????# # # # #?????????? | | ????????######## ######## # "" #?????????? | | ????????# %| # """" #?????????? | | ????????# **%! + """" #?????????? | | ????????######+#########+##### "" = #?????????? | | ???????????# ![=% "" =%= # = #?????????? | | ???????????# [[[ ## # #?????????? | | ???????????# ## ###########?????????? | | ???????????# ## #???????????????????? | | ???????????# ##%[ #???????????????????? | | ???????????# ##![ #???????????????????? | | ???????????#########[[ #???????????????????? | +----------------------------------------------------+ Best States ------------- Heat Dissipation 140 Energy Generation 132 Energy Capacity 1590 Matter Stores 300 Matter Capacity 300 Sight Range 16 Robot Scan Range 20 Terrain Scan Range 24 Terrain Scan Density 210 Jamming Range 14 Cloak Strength 4 Power Amplification 40 Armor Coverage 1200 Resistance: KI 30 Resistance: TH 30 Resistance: EX 30 Resistance: EM 75 Resistance: I 30 Resistance: S 30 Resistance: P 30 Core Shielding 30 Evasion (%) 50 Targeting Accuracy 20 Core Analysis 8 Recoil Reduction 6 Particle Charging 30 Kinecelleration 50 Salvage Targeting 4 Offensive Hacking 12 Item Schematics ----------------- None Robot Schematics ------------------ None Fabricated ------------ Com. HERF Cannon | x1 | -4/Factory | Preloaded Alien Tech Used ----------------- Core Expander Integrated Reactor Dimensional Node Initializer Integrated Mediator LC Capacitor Core Reset Matrix Core Regenerator Transdimensional Reconstructor Achievements -------------- None Challenges ------------ None Game ------ Seed MiningRefineryClaymores Manual? 0 Play Time 08:53:40 Cumulative 1275.8 hours Start 2022.08.12 @ 15:24:16 End 2022.08.19 @ 21:58:13 Sessions 5 Manual Loads 0 Difficulty Rogue Special Mode None Game No. 388 Rogue 388 Adventurer 0 Explorer 0 Win Type - Total 72 Types 13/18/13/3/1/2/18/2/2 Lore% 96 Gallery% 96 Achievement% 88 Wizard Run 0 Options --------- ASCII 0 Keyboard 0 Movement Numpad Keybinds 0 Fullscreen 2 Font 24/Smallcaps Map View 76x50 Tactical HUD 1 Map Filters NONE Filters NONE Steam 1 RUN: c4204cb7-4604-488c-8a35-baf1b5de4a1e